Organisation Name,Organisation Code,Directorate/Service,Service Category Label,Service Code,Supplier Name,Supplier Reference,Payment Date,Transaction Number,Net Payment,Purpose of Spend,Anal 1,Invoice No,Gross/Payment,Value 2,Status,Calc Gl Account,
North West Leicestershire District Council,31UH,Street Management,Environment Waste Management,ENOWM,Straight Plc,A024906,19/09/2018,1366520,10048.50,General Materials,I,38849,12058.2,2009.7,PD,0370-0729,0729
North West Leicestershire District Council,31UH,Leisure & Culture,Cultural Services Arts & Events,CULTEV,Fools Paradise,A037317,26/09/2018,1366877,400.00,Event Expenditure,I,14925,480,80,PD,0473-1986,1986
North West Leicestershire District Council,31UH,Street Management,Environment Parks,ENOP,Gilvar Lining Ltd,A040848,12/09/2018,1366944,395.00,External Contractor Payments,I,44582,474,79,PD,0390-0813,0813
North West Leicestershire District Council,31UH,Neighbourhoods & Communities,N & C Neighbourhoods,NACN,Ashby Life Limited,A032236,05/09/2018,1367197,272.00,Free Tree Scheme,I,15253,326.4,54.4,PD,0935-1936,1936
North West Leicestershire District Council,31UH,Housing,HRA Older Persons Service,HRAOPS,Tunstall Healthcare (UK) Limited,A001701,05/09/2018,1367226,842.70,Alarm System Telephones,I,3IN/10322579,1011.24,168.54,PD,5050-0864,0864
North West Leicestershire District Council,31UH,Planning & Development,Environment Planning Policy,EPP,Clearlead Consulting Ltd,A044888,05/09/2018,1367286,8137.50,Consultants Fees,I,436,9765,1627.5,PD,0925-0680,0680
North West Leicestershire District Council,31UH,Finance,Exchequer Services,EXCH,Blaby District Council,A000180,12/09/2018,1367287,12797.25,Contributions,I,H0003699,12797.25,0,PD,0913-0902,0902
North West Leicestershire District Council,31UH,Housing,HRA Performance & Business Support,HRAPBS,HQN Ltd,A007983,05/09/2018,1367312,820.00,Subscriptions,I,PSNET09101,984,164,PD,1203-0901,0901
North West Leicestershire District Council,31UH,Planning & Development,Environment - Development Control,EDC,Euro RSCG People T/A Havas People Ltd,A001395,12/09/2018,1367510,491.24,Advertising,I,602746,589.4,98.16,PD,0915-0941,0941
North West Leicestershire District Council,31UH,Planning & Development,Environment - Development Control,EDC,Euro RSCG People T/A Havas People Ltd,A001395,12/09/2018,1367512,440.27,Advertising,I,602555,528.24,87.97,PD,0915-0941,0941
North West Leicestershire District Council,31UH,Planning & Development,Environment - Development Control,EDC,Euro RSCG People T/A Havas People Ltd,A001395,12/09/2018,1367513,822.06,Advertising,I,602322,986.32,164.26,PD,0915-0941,0941
North West Leicestershire District Council,31UH,Planning & Development,Environment - Development Control,EDC,Euro RSCG People T/A Havas People Ltd,A001395,12/09/2018,1367514,307.56,Advertising,I,602068,369.07,61.51,PD,0915-0941,0941
North West Leicestershire District Council,31UH,Finance,Exchequer Services,EXCH,Insight Uk,A021505,12/09/2018,1367532,833.33,Computing,I,3988241,1000,166.67,PD,1024-0854,0854
North West Leicestershire District Council,31UH,Legal & Democratic,Legal Services,LDLS,Sellick Partnership (East Midlands) Limited,A036668,12/09/2018,1367565,742.50,Agency Staff,I,240407,891,148.5,PD,1017-0080,0080
North West Leicestershire District Council,31UH,Legal & Democratic,Legal Services,LDLS,Sellick Partnership (East Midlands) Limited,A036668,12/09/2018,1367566,742.50,Agency Staff,I,240406,891,148.5,PD,1017-0080,0080
North West Leicestershire District Council,31UH,Legal & Democratic,Legal Services,LDLS,Sellick Partnership (East Midlands) Limited,A036668,12/09/2018,1367576,742.50,Agency Staff,I,228637,891,148.5,PD,1017-0080,0080
North West Leicestershire District Council,31UH,Street Management,Environment - Street Scene,ESS,NPS Peterborough Ltd,A044569,05/09/2018,1367580,400.00,Consultants Fees,I,22-000677,480,80,PD,0930-0827,0827
North West Leicestershire District Council,31UH,Street Management,Environment Waste Management,ENOWM,Westbury Industrial Supplies Limited,A009933,05/09/2018,1367617,309.91,Protective Clothing,I,33712,371.89,61.98,PD,0280-0770,0770
North West Leicestershire District Council,31UH,Street Management,Environment Transport,ENOT,Innovative Safety Systems Limited,A038664,12/09/2018,1367622,1510.00,Operational Equipment,I,9867,1812,302,PD,5990-0710,0710
North West Leicestershire District Council,31UH,Street Management,Environment Transport,ENOT,Innovative Safety Systems Limited,A038664,12/09/2018,1367623,1510.00,Operational Equipment,I,9866,1812,302,PD,5990-0710,0710
North West Leicestershire District Council,31UH,Street Management,Environment Transport,ENOT,Innovative Safety Systems Limited,A038664,12/09/2018,1367624,1510.00,Operational Equipment,I,9865,1812,302,PD,5990-0710,0710
North West Leicestershire District Council,31UH,Street Management,Environment Transport,ENOT,Innovative Safety Systems Limited,A038664,12/09/2018,1367625,1510.00,Operational Equipment,I,9869,1812,302,PD,5990-0710,0710
North West Leicestershire District Council,31UH,Street Management,Environment Transport,ENOT,Innovative Safety Systems Limited,A038664,12/09/2018,1367626,1510.00,Operational Equipment,I,9868,1812,302,PD,5990-0710,0710
North West Leicestershire District Council,31UH,Finance,Financial Planning,FINPLA,Blaby District Council,A000180,12/09/2018,1367628,155300.50,Diabled Facilities Grant Contribution,I,H0003750,155300.5,0,PD,6818-1553,1553
North West Leicestershire District Council,31UH,Finance,Financial Planning,FINPLA,Department for Communities & Local Government,A028518,30/08/2018,1367667,2333485.00,Subsidy Receipts & Repayments,I,19TH SEPT 2018,2333485,0,PD,8524-8640,8640
North West Leicestershire District Council,31UH,Finance,Financial Planning,FINPLA,Cornwall Council,A031018,30/08/2018,1367668,34657.53,Policy Lending,I,BOND147 19/3-18/9/19,34657.53,0,PD,8499-6661,6661
North West Leicestershire District Council,31UH,Finance,Financial Planning,FINPLA,Leicestershire County Council,A000950,30/08/2018,1367669,1881005.00,Precepts,I,19TH SEPT 2018,1881005,0,PD,8524-8626,8626
North West Leicestershire District Council,31UH,Finance,Financial Planning,FINPLA,Leicestershire County Council,A000950,30/08/2018,1367670,4228657.00,Precepts,I,13TH SEPT 2018,4228657,0,PD,8524-8626,8626
North West Leicestershire District Council,31UH,Finance,Financial Planning,FINPLA,The Office of the Police and Crime Commissioner for Leicestershire,A007096,30/08/2018,1367671,677901.25,Precepts,I,13TH SEPT 2018,677901.25,0,PD,8542-8637,8637
North West Leicestershire District Council,31UH,Finance,Financial Planning,FINPLA,"Leicester, Leicestershire & Rutland Combined Fire Service",A028339,30/08/2018,1367672,220435.00,Precepts,I,13TH SEPT 2018,220435,0,PD,8542-8627,8627
North West Leicestershire District Council,31UH,Leisure Centres,Hermitage Bar & Catering,HLBC,Siemens Financial Services Ltd,A029510,05/09/2018,1367676,617.76,Equipment Operating Leases,I,244/18/0268744,741.31,123.55,PD,5501-0716,0716
North West Leicestershire District Council,31UH,Leisure Centres,Hermitage Leisure Centre,HLC,Stathams Coaches Ltd,A027406,05/09/2018,1367683,830.00,Event Expenditure,I,A0224,830,0,PD,5513-5961,5961
North West Leicestershire District Council,31UH,Street Management,Environment Transport,ENOT,Terberg Matec UK Limited,A001647,05/09/2018,1367690,515.15,Non Scheduled Maintenance - Parts,I,96361987,618.18,103.03,PD,5883-0541,0541
North West Leicestershire District Council,31UH,Neighbourhoods & Communities,N & C Community Safety,NACCS,Westminster Briefing,A044979,05/09/2018,1367692,295.00,Training Course,I,PK0129223,354,59,PD,0935-5882,5882
North West Leicestershire District Council,31UH,Neighbourhoods & Communities,N & C Community Safety,NACCS,Citizens Advice Leicestershire,A043282,05/09/2018,1367693,32425.00,Grants,I,831,32425,0,PD,0570-0803,0803
North West Leicestershire District Council,31UH,Property Services,Property Facilities Management,PROPFM,Charnwood Borough Council,A000323,05/09/2018,1367694,576.00,Staffing Costs,I,59287698,691.2,115.2,PD,0704-0115,0115
North West Leicestershire District Council,31UH,Property Services,Property Facilities Management,PROPFM,Aura Conservation Ltd,A044875,05/09/2018,1367695,14225.10,Contract Payments (Other) Ext,I,10136,17070.12,2845.02,PD,7485-1511,1511
North West Leicestershire District Council,31UH,Information Technology,ICT Services,ICT,GE Capital Equipment Finance Ltd,A017429,05/09/2018,1367696,339.08,Equipment Operating Leases,I,D250111031810,406.9,67.82,PD,0834-0716,0716
North West Leicestershire District Council,31UH,Street Management,Environment - Street Scene,ESS,EPT SERVICES,A039764,05/09/2018,1367699,540.00,Publicity & Promotion,I,200862,648,108,PD,0290-0942,0942
North West Leicestershire District Council,31UH,Property Services,Property Facilities Management,PROPFM,County Drains Leicester Ltd,A024295,05/09/2018,1367705,1996.50,General Repairs,I,INV-40161,2395.8,399.3,PD,0204-0100,0100
North West Leicestershire District Council,31UH,Housing,HRA Older Persons Service,HRAOPS,Tunstall Healthcare (UK) Limited,A001701,12/09/2018,1367709,295.00,Alarm System Telephones,I,3IN/10323218,354,59,PD,5050-0864,0864
North West Leicestershire District Council,31UH,Corporate Director,Human Resources,HR,Euro RSCG People T/A Havas People Ltd,A001395,05/09/2018,1367712,1061.04,Employee Advertising,I,602844,1273.04,212,PD,1003-0043,0043
North West Leicestershire District Council,31UH,Corporate Director,Human Resources,HR,Euro RSCG People T/A Havas People Ltd,A001395,05/09/2018,1367713,844.32,Employee Advertising,I,602834,1013.02,168.7,PD,1206-0043,0043
North West Leicestershire District Council,31UH,Street Management,Environment Transport,ENOT,Selby's Garage (Woodhouse) Ltd,A044011,05/09/2018,1367719,336.94,Hire Of Operational Equipment,I,9843,404.32,67.38,PD,0280-0733,0733
North West Leicestershire District Council,31UH,Property Services,Property Commercial Lettings,PROPCL,Pitney Bowes Finance Plc,A032630,19/09/2018,1367731,289.88,Equipment Operating Leases,I,BL05789202,347.86,57.98,PD,0044-0716,0716
North West Leicestershire District Council,31UH,Leisure Centres,Hermitage Leisure Centre,HLC,Centrica Business Solutions Uk Ltd,A034390,19/09/2018,1367732,650.00,General Repairs (Property Services),I,18502482,780,130,PD,5501-0108,0108
North West Leicestershire District Council,31UH,Street Management,Environment Waste Management,ENOWM,Ward Recycling,A035471,05/09/2018,1367733,1128.78,Tipping Charges,I,WSI561855,1354.54,225.76,PD,5301-0818,0818
North West Leicestershire District Council,31UH,Street Management,Environment Parks,ENOP,Welco,A001773,05/09/2018,1367736,714.00,Operational Purchases,I,WPSI0004788,856.8,142.8,PD,0390-0731,0731
North West Leicestershire District Council,31UH,Leisure Centres,Hermitage Bar & Catering,HLBC,Snackline Direct Ltd,A042489,05/09/2018,1367738,902.96,Catering Provisions,I,96093,1083.55,180.59,PD,5501-0750,0750
North West Leicestershire District Council,31UH,Leisure Centres,Hermitage Leisure Centre,HLC,Admiral Cleaning Supplies Ltd,A041992,05/09/2018,1367742,1183.45,Consumable Cleaning Materials/Hygiene,I,339381,1420.14,236.69,PD,5501-0421,0421
North West Leicestershire District Council,31UH,Finance,Exchequer Services,EXCH,Comensura Limited,A036958,05/09/2018,1367743,20377.48,Agency Staff,I,1013578,24453.07,4075.59,PD,0370-0080,0080
North West Leicestershire District Council,31UH,Leisure Centres,Hermitage Leisure Centre,HLC,Leisureteq,A000968,05/09/2018,1367749,319.00,Water Treatment,I,70567,382.8,63.8,PD,5501-0151,0151
North West Leicestershire District Council,31UH,Leisure Centres,Hermitage Leisure Centre,HLC,ESPO,A000958,05/09/2018,1367751,318.50,Operational Equipment,I,4954140,382.2,63.7,PD,5501-0710,0710
North West Leicestershire District Council,31UH,Street Management,Environment - Street Scene,ESS,Cuckoo Gap Limited,A000438,05/09/2018,1367753,480.00,Horticultural Supplies,I,1005068,576,96,PD,0141-0200,0200
North West Leicestershire District Council,31UH,Information Technology,ICT Services,ICT,Canon UK Ltd,A040459,05/09/2018,1367758,481.05,Equipment Operating Leases,I,402022171,577.26,96.21,PD,0834-0716,0716
North West Leicestershire District Council,31UH,Leisure & Culture,Cultural Services Arts & Events,CULTEV,Living Without Abuse,A038749,05/09/2018,1367760,250.00,Sponsorship,I,COALVILLE COLOUR RUN,250,0,PD,0695-1147,1147
North West Leicestershire District Council,31UH,Street Management,Environment Parks,ENOP,Vitax Limited,A031093,12/09/2018,1367761,371.98,Horticultural Supplies,I,160132,446.38,74.4,PD,0390-0731,0731
North West Leicestershire District Council,31UH,Leisure & Culture,Sport & Physical Activity,SPA,CBRE Ltd,A041437,12/09/2018,1367762,3750.00,Consultants Fees,I,50BCD00040250,4500,750,PD,5501-0680,0680
North West Leicestershire District Council,31UH,Street Management,Environment - Street Scene,ESS,TRL,A036596,05/09/2018,1367763,2495.76,Air Quality Monitoring,I,88605835,2994.91,499.15,PD,0913-1009,1009
North West Leicestershire District Council,31UH,Street Management,Environment - Street Scene,ESS,SLH Planning Solutions Limited,A044102,05/09/2018,1367764,3709.20,Consultants Fees,I,NWLDC/11,4451.04,741.84,PD,0913-0827,0827
North West Leicestershire District Council,31UH,Chief Exec,Chief Executive,CHEX,Governement Events,A045008,05/09/2018,1367769,379.00,Training Expenses,I,492,454.8,75.8,PD,1203-0042,0042
North West Leicestershire District Council,31UH,Housing Repairs,HRA Housing Repairs & Maintenance,HRAHRM,G Purchase Construction Ltd,A032830,05/09/2018,1367770,5936.51,Housing repairs,I,18080295,7123.81,1187.3,PD,6427-1636,1636
North West Leicestershire District Council,31UH,Housing Repairs,HRA Housing Repairs & Maintenance,HRAHRM,G Purchase Construction Ltd,A032830,05/09/2018,1367771,5936.51,Housing repairs,I,18080294,7123.81,1187.3,PD,6427-1624,1624
North West Leicestershire District Council,31UH,Housing Repairs,HRA Housing Repairs & Maintenance,HRAHRM,G Purchase Construction Ltd,A032830,05/09/2018,1367772,5936.51,Housing repairs,I,18080293,7123.81,1187.3,PD,6427-1625,1625
North West Leicestershire District Council,31UH,Housing Repairs,HRA Housing Repairs & Maintenance,HRAHRM,G Purchase Construction Ltd,A032830,05/09/2018,1367773,5936.51,Housing repairs,I,18080292,7123.81,1187.3,PD,6427-1624,1624
North West Leicestershire District Council,31UH,Housing Repairs,HRA Housing Repairs & Maintenance,HRAHRM,G Purchase Construction Ltd,A032830,05/09/2018,1367774,5169.44,Housing repairs,I,18080291,6203.33,1033.89,PD,6427-1619,1619
North West Leicestershire District Council,31UH,Housing Repairs,HRA Housing Repairs & Maintenance,HRAHRM,G Purchase Construction Ltd,A032830,05/09/2018,1367775,5936.51,Housing repairs,I,18080290,7123.81,1187.3,PD,6427-1638,1638
North West Leicestershire District Council,31UH,Housing Repairs,HRA Housing Repairs & Maintenance,HRAHRM,G Purchase Construction Ltd,A032830,05/09/2018,1367776,5936.51,Housing repairs,I,18080289,7123.81,1187.3,PD,6427-1636,1636
North West Leicestershire District Council,31UH,Housing Repairs,HRA Housing Repairs & Maintenance,HRAHRM,G Purchase Construction Ltd,A032830,05/09/2018,1367777,5936.51,Housing repairs,I,18080288,7123.81,1187.3,PD,6427-1610,1610
North West Leicestershire District Council,31UH,Housing Repairs,HRA Housing Repairs & Maintenance,HRAHRM,G Purchase Construction Ltd,A032830,05/09/2018,1367778,5936.51,Housing repairs,I,18080287,7123.81,1187.3,PD,6427-1630,1630
North West Leicestershire District Council,31UH,Housing Repairs,HRA Housing Repairs & Maintenance,HRAHRM,Sure Maintenance Ltd,A040460,05/09/2018,1367779,1620.39,Plumbing & Heating,I,249940,1944.47,324.08,PD,5008-0167,0167
North West Leicestershire District Council,31UH,Housing Repairs,HRA Housing Repairs & Maintenance,HRAHRM,Sure Maintenance Ltd,A040460,05/09/2018,1367780,2727.00,Plumbing & Heating,I,249804,3272.4,545.4,PD,5008-0167,0167
North West Leicestershire District Council,31UH,Street Management,Environment Transport,ENOT,Ford & Slater Group Ltd,A000625,05/09/2018,1367787,405.60,Transport Costs - Engine Oil,I,1345267,486.72,81.12,PD,5990-0522,0522
North West Leicestershire District Council,31UH,Leisure & Culture,Cultural Services Arts & Events,CULTEV,Hermitage FM,A041913,26/09/2018,1367789,400.00,Event Expenditure,I,18/190439,400,0,PD,0473-1986,1986
North West Leicestershire District Council,31UH,Leisure & Culture,Cultural Services Arts & Events,CULTEV,HDP Education Solutions Ltd,A041869,12/09/2018,1367791,293.75,Event Expenditure,I,1862,293.75,0,PD,0473-1985,1985
North West Leicestershire District Council,31UH,Housing Strategy,Community - Housing Strategy,HS,Guy Wardle Training & Consultancy,A044839,05/09/2018,1367795,560.08,Training Expenses,I,TRAINING/TRAVEL,560.08,0,PD,1216-0042,0042
North West Leicestershire District Council,31UH,Leisure Centres,Hood Park Leisure Centre,HPLC,J P Lennard Ltd,A000969,05/09/2018,1367805,855.00,Operational Equipment,I,905937,1026,171,PD,5513-0710,0710
North West Leicestershire District Council,31UH,Leisure Centres,Hood Park Leisure Centre,HPLC,JC Leisure Solutions,A044714,05/09/2018,1367807,500.00,General Repairs,I,35163,600,100,PD,5513-0100,0100
North West Leicestershire District Council,31UH,Leisure Centres,Hood Park Leisure Centre,HPLC,Tropicana Health and Fitness,A043758,05/09/2018,1367809,252.10,Equipment For Resale,I,1544179,285.8,33.7,PD,5501-0706,0706
North West Leicestershire District Council,31UH,Planning & Development,Environment Community Planning,ECP,Charnwood Borough Council,A000323,05/09/2018,1367811,5526.80,Computer Software Maintenance,I,59288840,6632.16,1105.36,PD,0935-0855,0855
North West Leicestershire District Council,31UH,Legal & Democratic,Legal Services,LDLS,Thomson Reuters (Professional) UK Limited,A037595,05/09/2018,1367813,825.00,Computer Development,I,1043824,990,165,PD,1017-0897,0897
North West Leicestershire District Council,31UH,Legal & Democratic,Electoral & Land Charges,LDELC,SCI Print Limited,A028974,05/09/2018,1367814,570.00,External Printing,I,3600,684,114,PD,0845-0781,0781
North West Leicestershire District Council,31UH,Housing Repairs,HRA Housing Repairs & Maintenance,HRAHRM,Ward Recycling,A035471,05/09/2018,1367817,521.38,Tipping Charges,I,WSI560248,625.66,104.28,PD,5301-0818,0818
North West Leicestershire District Council,31UH,Housing,HRA Housing Management,HRAHM,Water Plus Limited,A044043,05/09/2018,1367821,559.93,Water Charges (Metered),I,831026167,559.93,0,PD,5030-0370,0370
North West Leicestershire District Council,31UH,Street Management,Environment - Street Scene,ESS,Euro RSCG People T/A Havas People Ltd,A001395,12/09/2018,1367822,333.33,Consultants Fees,I,603642,399.93,66.6,PD,0930-0827,0827
North West Leicestershire District Council,31UH,Housing,HRA Older Persons Service,HRAOPS,Tunstall Healthcare (UK) Limited,A001701,05/09/2018,1367824,1194.00,Alarm System Telephones,I,3IN/10323517,1432.8,238.8,PD,5050-0864,0864
North West Leicestershire District Council,31UH,Finance,Exchequer Services,EXCH,Click Travel Ltd,A044308,05/09/2018,1367825,1670.75,Accomodation and subsistence,I,1081009,2004.9,334.15,PD,0570-0803,0803
North West Leicestershire District Council,31UH,Chief Exec,Chief Executive,CHEX,NPS Peterborough Ltd,A044569,05/09/2018,1367826,5108.89,Consultants Fees,I,22-000683,6130.67,1021.78,PD,7404-0800,0800
North West Leicestershire District Council,31UH,Housing,HRA Performance & Business Support,HRAPBS,Coalville Yellow Cabs,A041983,05/09/2018,1367827,378.50,Public Transport,I,3573,454.2,75.7,PD,5085-0601,0601
North West Leicestershire District Council,31UH,Housing Repairs,HRA Housing Repairs & Maintenance,HRAHRM,Orbis Property Protection Ltd,A028149,05/09/2018,1367831,313.00,Void Property Clearance Services,I,B0887968,375.6,62.6,PD,5005-1625,1625
North West Leicestershire District Council,31UH,Housing Repairs,HRA Housing Repairs & Maintenance,HRAHRM,Laker BMS Ltd,A031787,05/09/2018,1367832,2049.74,Housing Repairs,I,IN00068502,2459.69,409.95,PD,5010-0167,0167
North West Leicestershire District Council,31UH,Housing Repairs,HRA Housing Repairs & Maintenance,HRAHRM,Laker BMS Ltd,A031787,05/09/2018,1367833,1398.00,Housing Repairs,I,IN00068503,1677.6,279.6,PD,5010-0167,0167
North West Leicestershire District Council,31UH,Housing Repairs,HRA Housing Repairs & Maintenance,HRAHRM,Laker BMS Ltd,A031787,05/09/2018,1367834,1215.50,Housing Repairs,I,IN00068504,1458.6,243.1,PD,5010-0167,0167
North West Leicestershire District Council,31UH,Housing Repairs,HRA Housing Repairs & Maintenance,HRAHRM,Laker BMS Ltd,A031787,05/09/2018,1367836,1686.52,Housing Repairs,I,IN00069206,2023.82,337.3,PD,5010-0167,0167
North West Leicestershire District Council,31UH,Housing Repairs,HRA Housing Repairs & Maintenance,HRAHRM,Laker BMS Ltd,A031787,05/09/2018,1367840,2517.00,Housing Repairs,I,IN00069765,3020.4,503.4,PD,5010-0167,0167
North West Leicestershire District Council,31UH,Housing Repairs,HRA Housing Repairs & Maintenance,HRAHRM,KONE,A041790,05/09/2018,1367841,283.36,Lift installation and maintenance,I,38227488,340.03,56.67,PD,5103-1622,1622
North West Leicestershire District Council,31UH,Housing Repairs,HRA Housing Repairs & Maintenance,HRAHRM,Laker BMS Ltd,A031787,05/09/2018,1367842,2124.00,Housing Repairs,I,IN00069766,2548.8,424.8,PD,6425-1510,1510
North West Leicestershire District Council,31UH,Housing Repairs,HRA Housing Repairs & Maintenance,HRAHRM,Orbis Property Protection Ltd,A028149,05/09/2018,1367845,403.39,Void Property Clearance Services,I,B0902281,484.07,80.68,PD,5005-1601,1601
North West Leicestershire District Council,31UH,Housing Repairs,HRA Housing Repairs & Maintenance,HRAHRM,Orbis Property Protection Ltd,A028149,05/09/2018,1367848,1095.00,Void Property Clearance Services,I,B0902421,1314,219,PD,5005-1619,1619
North West Leicestershire District Council,31UH,Housing Repairs,HRA Housing Repairs & Maintenance,HRAHRM,Orbis Property Protection Ltd,A028149,05/09/2018,1367850,1425.00,Void Property Clearance Services,I,B0903764,1710,285,PD,5005-1610,1610
North West Leicestershire District Council,31UH,Housing Repairs,HRA Housing Repairs & Maintenance,HRAHRM,Orbis Property Protection Ltd,A028149,05/09/2018,1367851,903.51,Void Property Clearance Services,I,B0903765,1084.2,180.69,PD,5005-1627,1627
North West Leicestershire District Council,31UH,Planning & Development,Environment Community Planning,ECP,Dods Parliamentary Communications Ltd,A036291,05/09/2018,1367856,418.50,Training Course,I,PK0125728,502.2,83.7,PD,0935-5877,5877
North West Leicestershire District Council,31UH,Information Technology,ICT Services,ICT,Phoenix Software Limited,A001298,12/09/2018,1367860,266.20,Corporate IT Licences,I,OP/I826316,319.44,53.24,PD,1011-0738,0738
North West Leicestershire District Council,31UH,Street Management,Environment Transport,ENOT,Mertrux Ltd,A035291,05/09/2018,1367867,366.52,Repairs - Parts,I,21132945,439.82,73.3,PD,5895-0533,0533
North West Leicestershire District Council,31UH,Property Services,Property Commercial Lettings,PROPCL,Purchase Power,A008204,12/09/2018,1367868,2080.04,Postages,I,BF795697,2080.04,0,PD,0044-0850,0850
North West Leicestershire District Council,31UH,Street Management,Environment Transport,ENOT,Scarab Sweepers Limited,A001445,05/09/2018,1367870,439.40,Repairs - Parts,I,2018.100002,527.28,87.88,PD,5850-0533,0533
North West Leicestershire District Council,31UH,Street Management,Environment Transport,ENOT,S & B Tyres Limited,A034071,05/09/2018,1367871,630.00,Transport Costs - Tyres,I,12189,756,126,PD,5827-0523,0523
North West Leicestershire District Council,31UH,Street Management,Environment - Street Scene,ESS,NPS Peterborough Ltd,A044569,12/09/2018,1367879,2100.00,Consultants Fees,I,22-000666,2520,420,PD,0930-0827,0827
North West Leicestershire District Council,31UH,Finance,Exchequer Services,EXCH,Leicestershire County Council,A000951,05/09/2018,1367886,20000.00,Pension Defecit Payment,I,PENSION DEFECIT,20000,0,PD,8022-1122,1122
North West Leicestershire District Council,31UH,Housing Repairs,HRA Housing Repairs & Maintenance,HRAHRM,Everwarm Limited,A044582,05/09/2018,1367888,252513.54,Contract Payments (Dws) Ext,I,30457,265139.22,12625.68,PD,6499-1510,1510
North West Leicestershire District Council,31UH,Housing,HRA Housing Management,HRAHM,Sure Maintenance Ltd,A040460,05/09/2018,1367895,8321.04,Plumbing & Heating,I,249799,9985.25,1664.21,PD,5007-1241,1241
North West Leicestershire District Council,31UH,Housing Repairs,HRA Housing Repairs & Maintenance,HRAHRM,Emperor Scaffolding Limited,A038405,05/09/2018,1367897,550.00,Hire Of Operational Equipment,I,12796,660,110,PD,5301-0733,0733
North West Leicestershire District Council,31UH,Housing Repairs,HRA Housing Repairs & Maintenance,HRAHRM,Emperor Scaffolding Limited,A038405,05/09/2018,1367898,400.00,Hire Of Operational Equipment,I,12777,480,80,PD,5301-0733,0733
North West Leicestershire District Council,31UH,Housing,HRA Housing Management,HRAHM,Emperor Scaffolding Limited,A038405,05/09/2018,1367899,400.00,Hire Of Operational Equipment,I,12795,480,80,PD,5301-0733,0733
North West Leicestershire District Council,31UH,Communications,Corporate - Customer Services,CS,Neopost Finance Limited,A031590,05/09/2018,1367902,2552.28,Equipment Operating Leases,I,2018057803,3062.74,510.46,PD,0838-0716,0716
North West Leicestershire District Council,31UH,Street Management,Environment - Street Scene,ESS,NPS Peterborough Ltd,A044569,26/09/2018,1367903,850.00,Consultants Fees,I,22-000699,1020,170,PD,0930-0827,0827
North West Leicestershire District Council,31UH,Neighbourhoods & Communities,N & C Community Safety,NACCS,Leicestershire County Council,A028430,05/09/2018,1367904,437.96,CCTV Installation,I,28183848,525.55,87.59,PD,0935-5995,5995
North West Leicestershire District Council,31UH,Street Management,Environment Transport,ENOT,Watling JCB Ltd,A032114,05/09/2018,1367905,-1130.00,Scheduled Servicing - Parts,C,1361465,1356,226,PD,5290-0532,0532
North West Leicestershire District Council,31UH,Street Management,Environment Transport,ENOT,Watling JCB Ltd,A032114,05/09/2018,1367906,1130.00,Scheduled Servicing - Parts,I,13696744,1356,226,PD,5290-0532,0532
North West Leicestershire District Council,31UH,Street Management,Environment Transport,ENOT,Watling JCB Ltd,A032114,05/09/2018,1367907,1017.00,Scheduled Servicing - Parts,I,13697349,1220.4,203.4,PD,5920-0532,0532
North West Leicestershire District Council,31UH,Leisure & Culture,Cultural Services Arts & Events,CULTEV,Norwood Press,A042636,12/09/2018,1367908,280.00,External Printing,I,241,280,0,PD,0703-5962,5962
North West Leicestershire District Council,31UH,Corporate Director,Human Resources,HR,Best4Systems,A044999,05/09/2018,1367968,296.00,Operational Equipment,I,243363,355.2,59.2,PD,1206-0710,0710
North West Leicestershire District Council,31UH,Street Management,Environment Transport,ENOT,Dennis Eagle Limited,A000522,05/09/2018,1367978,295.76,Repairs - Parts,I,DE11133586,354.91,59.15,PD,5898-0533,0533
North West Leicestershire District Council,31UH,Economic Development,Business Focus Group,BFG,Quiet Storm Solutions Limited,A016412,05/09/2018,1367983,412.00,Publicity & Promotion,I,17975,494.4,82.4,PD,0928-0942,0942
North West Leicestershire District Council,31UH,Legal & Democratic,Legal Services,LDLS,Straw & Pearce Solicitors,A001593,05/09/2018,1367985,2369.00,Legal & Professional Services,I,NWL2178/139,2842.8,473.8,PD,0913-0800,0800
North West Leicestershire District Council,31UH,Legal & Democratic,Legal Services,LDLS,Apse,A018837,05/09/2018,1367986,4010.00,Subscriptions,I,PN1819/118,4812,802,PD,1126-0901,0901
North West Leicestershire District Council,31UH,Corporate Director,Human Resources,HR,Inchcape Fleet Solutions,A039405,05/09/2018,1367989,7416.49,Items To Be Leased,I,2017867,8185.86,769.37,PD,8018-6015,6015
North West Leicestershire District Council,31UH,Planning & Development,Environment Community Planning,ECP,Peter Brett Associates LLP,A028258,05/09/2018,1367991,4500.00,External Legal Fees & Advice,I,153739 JWA,5400,900,PD,1301-1900,1900
North West Leicestershire District Council,31UH,Leisure & Culture,Cultural Services Arts & Events,CULTEV,Coalville Times Ltd,A000374,12/09/2018,1367993,410.80,Advertising,I,79192,492.96,82.16,PD,0703-0941,0941
North West Leicestershire District Council,31UH,Finance,Financial Planning,FINPLA,Harborough District Council,A008631,12/09/2018,1367996,5125.00,Legal & Professional Services,I,D0012833,6150,1025,PD,1204-0800,0800
North West Leicestershire District Council,31UH,Finance,Financial Planning,FINPLA,Harborough District Council,A008631,12/09/2018,1367997,-5250.00,Legal & Professional Services,C,C0007864,6300,1050,PD,1204-0800,0800
North West Leicestershire District Council,31UH,Neighbourhoods & Communities,N & C Community Safety,NACCS,Rapid Vision Systems Ltd,A044267,12/09/2018,1367998,7675.00,CCTV Equipment,I,11794,9210,1535,PD,0935-0680,0680
North West Leicestershire District Council,31UH,Street Management,Environment - Street Scene,ESS,Metric Group Ltd (Sales),A028996,12/09/2018,1367999,261.00,Subscriptions,I,C47935,313.2,52.2,PD,1126-0901,0901
North West Leicestershire District Council,31UH,Legal & Democratic,Electoral & Land Charges,LDELC,Pakflatt (UK) Limited,A037082,12/09/2018,1368003,1705.00,Election- Polling Booths,I,5407,2046,341,PD,0845-0680,0680
North West Leicestershire District Council,31UH,Street Management,Environment Transport,ENOT,Taylor Engineering & Fabrications Ltd,A036178,12/09/2018,1368009,320.00,Repairs - Parts,I,33281,384,64,PD,5897-0533,0533
North West Leicestershire District Council,31UH,Street Management,Environment Transport,ENOT,Taylor Engineering & Fabrications Ltd,A036178,12/09/2018,1368011,364.07,Non Scheduled Maintenance - Parts,I,33283,436.89,72.82,PD,5883-0541,0541
North West Leicestershire District Council,31UH,Housing Repairs,HRA Housing Repairs & Maintenance,HRAHRM,ESPO,A000958,12/09/2018,1368013,465.00,Furniture,I,4959497,558,93,PD,1207-0711,0711
North West Leicestershire District Council,31UH,Neighbourhoods & Communities,N & C Community Safety,NACCS,Streetvibe Young Peoples Service,A044943,12/09/2018,1368016,1155.00,Contributions,I,P5,1155,0,PD,5080-0902,0902
North West Leicestershire District Council,31UH,Street Management,Environment Transport,ENOT,Dennis Eagle Limited,A000522,12/09/2018,1368020,512.55,Repairs - Parts,I,DE11150586,615.06,102.51,PD,5869-0533,0533
North West Leicestershire District Council,31UH,Legal & Democratic,Electoral & Land Charges,LDELC,SCI Print Limited,A028974,12/09/2018,1368024,1872.01,External Printing,I,3591,2246.41,374.4,PD,0855-0803,0803
North West Leicestershire District Council,31UH,Housing,HRA Performance & Business Support,HRAPBS,Alysium Consulting,A043813,12/09/2018,1368025,3875.00,Consultants Fees,I,775,4650,775,PD,1203-0680,0680
North West Leicestershire District Council,31UH,Housing,HRA Performance & Business Support,HRAPBS,Alysium Consulting,A043813,12/09/2018,1368026,1327.60,Consultants Fees,I,784,1593.12,265.52,PD,1203-0680,0680
North West Leicestershire District Council,31UH,Corporate Director,Human Resources,HR,Wider Plan Ltd,A043948,12/09/2018,1368027,4100.00,Staff Benefit Scheme,I,4355719,4100,0,PD,9704-8100,8100
North West Leicestershire District Council,31UH,Street Management,Environment Transport,ENOT,Partic Motor Spares Ltd,A042528,12/09/2018,1368029,657.33,Repairs - Parts,I,CIN0022881,788.8,131.47,PD,5898-0533,0533
North West Leicestershire District Council,31UH,Housing Repairs,HRA Housing Repairs & Maintenance,HRAHRM,Severn Trent Water,A043977,12/09/2018,1368037,730.90,Water Connection Services,I,4000403139,730.9,0,PD,6466-0800,0800
North West Leicestershire District Council,31UH,Housing Repairs,HRA Housing Repairs & Maintenance,HRAHRM,Severn Trent Water,A043977,12/09/2018,1368038,1461.80,Water Connection Services,I,4000403138,1461.8,0,PD,6466-0800,0800
North West Leicestershire District Council,31UH,Housing Repairs,HRA Housing Repairs & Maintenance,HRAHRM,Severn Trent Water,A043977,12/09/2018,1368039,1461.80,Water Connection Services,I,4000403137,1461.8,0,PD,6466-0800,0800
North West Leicestershire District Council,31UH,Housing Repairs,HRA Housing Repairs & Maintenance,HRAHRM,Severn Trent Water,A043977,12/09/2018,1368040,730.90,Water Connection Services,I,4000403136,730.9,0,PD,6466-0800,0800
North West Leicestershire District Council,31UH,Housing Repairs,HRA Housing Repairs & Maintenance,HRAHRM,Kaefer Ltd,A044187,12/09/2018,1368041,6152.44,Contract Payments (Dws) Ext,I,33698,7382.93,1230.49,PD,6495-1510,1510
North West Leicestershire District Council,31UH,Legal & Democratic,Legal Services,LDLS,Sellick Partnership (East Midlands) Limited,A036668,12/09/2018,1368043,371.25,Agency Staff,I,INV241434,445.5,74.25,PD,1017-0080,0080
North West Leicestershire District Council,31UH,Legal & Democratic,Legal Services,LDLS,Bevan Brittan,A031366,12/09/2018,1368044,365.20,Legal & Professional Services,I,10029277,437.44,72.24,PD,7404-0800,0800
North West Leicestershire District Council,31UH,Leisure Centres,Hood Park Leisure Centre,HPLC,Zoggs International Ltd,A001833,12/09/2018,1368045,265.20,Equipment For Resale,I,I-0530056,318.24,53.04,PD,5513-0706,0706
North West Leicestershire District Council,31UH,Leisure Centres,Hermitage Leisure Centre,HLC,Bouncy Castle Repairs,A022996,12/09/2018,1368054,427.24,General Repairs,I,47,427.24,0,PD,5501-0100,0100
North West Leicestershire District Council,31UH,Street Management,Environment - Street Scene,ESS,Empty Homes Network,A044789,12/09/2018,1368058,268.00,Training Expenses,I,180162,268,0,PD,1126-0042,0042
North West Leicestershire District Council,31UH,Street Management,Environment Parks,ENOP,Wicksteed Leisure Limited,A001789,12/09/2018,1368059,6347.22,Minor Improvements Alterations,I,802734,7616.66,1269.44,PD,0395-0105,0105
North West Leicestershire District Council,31UH,Leisure & Culture,Cultural Services Arts & Events,CULTEV,Graeme Mitcheson,A044860,26/09/2018,1368063,5000.00,WW1 Commemorative Artwork,I,460,6000,1000,PD,0471-0680,0680
North West Leicestershire District Council,31UH,Finance,Financial Planning,FINPLA,Creditsafe Business Solutions Ltd,A031200,12/09/2018,1368067,530.00,Credit reference Searches,I,809931,636,106,PD,1028-0949,0949
North West Leicestershire District Council,31UH,Finance,Financial Planning,FINPLA,CIPFA,A027467,12/09/2018,1368068,295.00,Training Course,I,3137977,295,0,PD,1003-0042,0042
North West Leicestershire District Council,31UH,Property Services,Property Facilities Management,PROPFM,Regarde Security Ltd,A013049,19/09/2018,1368071,268.80,Security Services,I,6542,322.56,53.76,PD,0204-0802,0802
North West Leicestershire District Council,31UH,Property Services,Property Commercial Lettings,PROPCL,Regarde Security Ltd,A013049,19/09/2018,1368075,530.00,Building Security,I,6538,636,106,PD,0210-0384,0384
North West Leicestershire District Council,31UH,Property Services,Property Commercial Lettings,PROPCL,Regarde Security Ltd,A013049,19/09/2018,1368076,537.60,Building Security,I,6537,645.12,107.52,PD,0210-0384,0384
North West Leicestershire District Council,31UH,Property Services,Property Facilities Management,PROPFM,DTE Demolition,A044031,12/09/2018,1368078,19770.00,Contract Payments (Other) Ext,I,1291,23724,3954,PD,7260-1511,1511
North West Leicestershire District Council,31UH,Housing Repairs,HRA Housing Repairs & Maintenance,HRAHRM,Severn Trent Water,A043977,12/09/2018,1368079,1461.80,Water Connection Services,I,4000403141,1461.8,0,PD,6466-0800,0800
North West Leicestershire District Council,31UH,Housing Repairs,HRA Housing Repairs & Maintenance,HRAHRM,Severn Trent Water,A043977,12/09/2018,1368080,1461.80,Water Connection Services,I,4000403140,1461.8,0,PD,6466-0800,0800
North West Leicestershire District Council,31UH,Information Technology,ICT Services,ICT,Dell Computer Corporation Ltd,A000470,12/09/2018,1368081,600.00,IT Equipment,I,7402466953,720,120,PD,1003-0680,0680
North West Leicestershire District Council,31UH,Legal & Democratic,Legal Services,LDLS,Martin Lee & Co,A030613,12/09/2018,1368084,1782.50,Legal & Professional Services,I,17480,2139,356.5,PD,5030-0800,0800
North West Leicestershire District Council,31UH,Legal & Democratic,Legal Services,LDLS,Martin Lee & Co,A030613,12/09/2018,1368085,1588.16,Legal & Professional Services,I,17516,1844.19,256.03,PD,5030-0800,0800
North West Leicestershire District Council,31UH,Information Technology,ICT Services,ICT,Canon UK Ltd,A040459,12/09/2018,1368086,2519.25,Equipment Operating Leases,I,402022864,3023.1,503.85,PD,0837-0723,0723
North West Leicestershire District Council,31UH,Information Technology,ICT Services,ICT,EE Ltd (Airtime),A018592,12/09/2018,1368088,4586.02,Mobile Telephones,I,1277501590,5484.02,898,PD,0052-0856,0856
North West Leicestershire District Council,31UH,Finance,Exchequer Services,EXCH,Click Travel Ltd,A044308,12/09/2018,1368090,1355.10,Accomodation and subsistence,I,1082781,1514.9,159.8,PD,1129-0042,0042
North West Leicestershire District Council,31UH,Housing Repairs,HRA Housing Repairs & Maintenance,HRAHRM,NICEIC Training,A032496,12/09/2018,1368091,935.00,Training Expenses,I,86230657,1122,187,PD,5305-0042,0042
North West Leicestershire District Council,31UH,Leisure Centres,Hood Park Leisure Centre,HPLC,Stowlin Ltd,A001591,12/09/2018,1368094,330.00,Water Treatment,I,OP/I013559,396,66,PD,5513-0151,0151
North West Leicestershire District Council,31UH,Leisure Centres,Hood Park Bar and Catering,HPBC,Molson Coors Brewing Company (UK) Ltd,A044397,12/09/2018,1368100,346.87,Bar Provisions,I,904689457,416.22,69.35,PD,5513-0751,0751
North West Leicestershire District Council,31UH,Chief Exec,Chief Executive,CHEX,Ecus Ltd,A044014,12/09/2018,1368103,750.00,Legal Fees,I,13786,900,150,PD,9400-7620,7620
North West Leicestershire District Council,31UH,Chief Exec,Chief Executive,CHEX,Dinc Limited T/A Dinc Creative,A044215,12/09/2018,1368104,2200.00,Legal & Professional Services,I,7,2640,440,PD,1510-0800,0800
North West Leicestershire District Council,31UH,Corporate Director,Human Resources,HR,Learning Pool Ltd,A039508,12/09/2018,1368105,12000.00,Subscriptions,I,INV-014046,14400,2400,PD,1024-0901,0901
North West Leicestershire District Council,31UH,Housing Repairs,HRA Housing Repairs & Maintenance,HRAHRM,Michael Dyson Associates Ltd,A028431,12/09/2018,1368106,850.00,Consultants Fees,I,4402,1020,170,PD,0530-0800,0800
North West Leicestershire District Council,31UH,Street Management,Environment Transport,ENOT,Bandvulc Tyres Ltd,A033268,,1368109,-800.00,Transport Costs - Tyres,C,35643,960,160,PST,5991-0523,0523
North West Leicestershire District Council,31UH,Street Management,Environment Transport,ENOT,Anderson Commercials Limited,A033469,12/09/2018,1368110,306.00,Good Vehicle Plating,I,31547,322,16,PD,5883-0982,0982
North West Leicestershire District Council,31UH,Street Management,Environment Transport,ENOT,Mertrux Ltd,A035291,12/09/2018,1368111,291.26,Scheduled Servicing - Parts,I,21133501,349.51,58.25,PD,5883-0532,0532
North West Leicestershire District Council,31UH,Street Management,Environment Parks,ENOP,Regarde Security Ltd,A013049,12/09/2018,1368112,940.80,Security Services,I,6544,1128.96,188.16,PD,0390-0802,0802
North West Leicestershire District Council,31UH,Street Management,Environment Transport,ENOT,Certas Energy Uk Ltd,A043448,12/09/2018,1368114,18907.20,Fuel,I,1188619,22688.64,3781.44,PD,9702-8100,8100
North West Leicestershire District Council,31UH,Leisure & Culture,Cultural Services TIC,CULTIC,Leicester Shire Promotions,A033519,19/09/2018,1368115,450.00,Promotions Board Annual Event,I,12903,540,90,PD,0067-5958,5958
North West Leicestershire District Council,31UH,Chief Exec,Chief Executive,CHEX,CBRE Ltd,A041437,12/09/2018,1368118,12540.00,Consultants Fees,I,50BCD00045766,15048,2508,PD,5501-0680,0680
North West Leicestershire District Council,31UH,Property Services,Property Facilities Management,PROPFM,Watertec Compliance Solutions Ltd,A044559,19/09/2018,1368119,1699.98,General Repairs,I,1925,2039.98,340,PD,5501-0100,0100
North West Leicestershire District Council,31UH,Street Management,Environment Waste Management,ENOWM,Westbury Industrial Supplies Limited,A009933,12/09/2018,1368120,477.84,Protective Clothing,I,33808,573.41,95.57,PD,0280-0770,0770
North West Leicestershire District Council,31UH,Street Management,Environment Transport,ENOT,Westbury Industrial Supplies Limited,A009933,12/09/2018,1368121,342.44,Protective Clothing,I,33807,410.93,68.49,PD,0370-0770,0770
North West Leicestershire District Council,31UH,Leisure Centres,Hood Park Bar and Catering,HPBC,Molson Coors Brewing Company (UK) Ltd,A044397,12/09/2018,1368123,658.66,Bar Provisions,I,904664324,790.4,131.74,PD,5513-0751,0751
North West Leicestershire District Council,31UH,Leisure Centres,Hood Park Bar and Catering,HPBC,Molson Coors Brewing Company (UK) Ltd,A044397,12/09/2018,1368124,431.97,Bar Provisions,I,904733407,518.33,86.36,PD,5513-0751,0751
North West Leicestershire District Council,31UH,Leisure Centres,Hood Park Leisure Centre,HPLC,Water Plus Limited,A044043,12/09/2018,1368125,932.60,Water Charges (Metered),I,592002223,932.6,0,PD,5513-0370,0370
North West Leicestershire District Council,31UH,Housing,HRA Housing Management,HRAHM,DMW Environmental Safety Ltd,A044203,12/09/2018,1368127,2050.37,Environmental Surveys,I,66392,2460.44,410.07,PD,5022-0170,0170
North West Leicestershire District Council,31UH,Information Technology,ICT Services,ICT,Virgin Media Business,A008908,12/09/2018,1368131,2824.81,Telephone Charge / Rental,I,852500501/001/0918,3389.78,564.97,PD,5513-0860,0860
North West Leicestershire District Council,31UH,Finance,Exchequer Services,EXCH,Insight Uk,A021505,12/09/2018,1368133,5019.22,Contract Payments (Other) Ext,I,4026015,6023.06,1003.84,PD,7172-1511,1511
North West Leicestershire District Council,31UH,Finance,Exchequer Services,EXCH,Comensura Limited,A036958,12/09/2018,1368134,20707.12,Agency Staff,I,1013888,24848.57,4141.45,PD,0370-0080,0080
North West Leicestershire District Council,31UH,Legal & Democratic,Legal Services,LDLS,Hopwood Public Relations,A041895,12/09/2018,1368136,500.00,Consultants Fees,I,5692,600,100,PD,1017-1078,1078
North West Leicestershire District Council,31UH,Street Management,Environment Transport,ENOT,Terberg Matec UK Limited,A001647,12/09/2018,1368138,1855.19,Repairs - Parts,I,96362339,2226.24,371.05,PD,5893-0533,0533
North West Leicestershire District Council,31UH,Housing,HRA Performance & Business Support,HRAPBS,Kaplan Financial,A040435,12/09/2018,1368139,895.00,Training Expenses,I,SINV18-079933,1074,179,PD,1203-0042,0042
North West Leicestershire District Council,31UH,Legal & Democratic,Legal Services,LDLS,Sellick Partnership (East Midlands) Limited,A036668,12/09/2018,1368140,371.25,Agency Staff,I,INV242283,445.5,74.25,PD,1017-0080,0080
North West Leicestershire District Council,31UH,Environmental Health,Environmental Health & Licensing,EEHL,RH Environmental Limited,A037505,12/09/2018,1368145,286.20,Training Expenses,I,14976,343.44,57.24,PD,1129-0042,0042
North West Leicestershire District Council,31UH,Street Management,Environment Waste Management,ENOWM,Overton UK Limited,A033725,12/09/2018,1368146,1649.00,Street Cleansing Equipment,I,11132,1978.8,329.8,PD,1124-1058,1058
North West Leicestershire District Council,31UH,Finance,Housing Benefits,BENS,Harborough District Council,A008631,12/09/2018,1368147,5250.00,Legal & Professional Services,I,D0012758,6300,1050,PD,1204-0800,0800
North West Leicestershire District Council,31UH,Finance,Exchequer Services,EXCH,HM Revenues & Customs,A038465,12/09/2018,1368148,320.00,Payment To Inland Revenue,I,267PP00112606,320,0,PD,9182-7135,7135
North West Leicestershire District Council,31UH,Street Management,Environment Transport,ENOT,Boc Limited,A000193,12/09/2018,1368149,291.25,Operational Purchases,I,3048949408,349.5,58.25,PD,5992-0731,0731
North West Leicestershire District Council,31UH,Housing Repairs,HRA Housing Repairs & Maintenance,HRAHRM,Timber-Link Fencing Ltd,A033297,12/09/2018,1368154,304.00,External Contractor Payments,I,1418,364.8,60.8,PD,0390-0813,0813
North West Leicestershire District Council,31UH,Housing Repairs,HRA Housing Repairs & Maintenance,HRAHRM,Timber-Link Fencing Ltd,A033297,12/09/2018,1368155,2185.00,External Contractor Payments,I,1417,2622,437,PD,0390-0813,0813
North West Leicestershire District Council,31UH,Housing Repairs,HRA Housing Repairs & Maintenance,HRAHRM,Timber-Link Fencing Ltd,A033297,12/09/2018,1368156,4000.00,External Contractor Payments,I,1416,4800,800,PD,0390-0813,0813
North West Leicestershire District Council,31UH,Chief Exec,Chief Executive,CHEX,Leicestershire County Council,A027423,12/09/2018,1368158,33197.41,Design and Survey Fees,I,25728965,39836.89,6639.48,PD,7404-0800,0800
North West Leicestershire District Council,31UH,Information Technology,ICT Services,ICT,Kingsfield Computer Products Ltd,A039732,12/09/2018,1368160,3922.95,Computing,I,85285,4707.55,784.6,PD,0842-0854,0854
North West Leicestershire District Council,31UH,Housing Repairs,HRA Housing Repairs & Maintenance,HRAHRM,Sure Maintenance Ltd,A040460,12/09/2018,1368162,750.00,Plumbing & Heating,I,250220,900,150,PD,5007-1241,1241
North West Leicestershire District Council,31UH,Environmental Health,Environmental Services,EES,F C Cartons Ltd,A043944,12/09/2018,1368165,25000.00,Grants,I,ENWL-010,25000,0,PD,0925-1181,1181
North West Leicestershire District Council,31UH,Information Technology,ICT Services,ICT,Canon UK Ltd,A040459,12/09/2018,1368227,1474.38,Equipment Operating Leases,I,770670903,1769.26,294.88,PD,0834-0716,0716
North West Leicestershire District Council,31UH,Housing,HRA Housing Management,HRAHM,G Purchase Construction Ltd,A032830,12/09/2018,1368228,6817.44,Housing repairs,I,18060234,8180.93,1363.49,PD,6427-1630,1630
North West Leicestershire District Council,31UH,Housing Repairs,HRA Housing Repairs & Maintenance,HRAHRM,Orbis Property Protection Ltd,A028149,12/09/2018,1368233,356.55,Void Property Clearance Services,I,B0902075,427.85,71.3,PD,5005-1620,1620
North West Leicestershire District Council,31UH,Housing Repairs,HRA Housing Repairs & Maintenance,HRAHRM,H20 Utilities Ltd,A043865,12/09/2018,1368234,1450.00,Associated Drainage Services,I,5531,1740,290,PD,5103-1633,1633
North West Leicestershire District Council,31UH,Housing Repairs,HRA Housing Repairs & Maintenance,HRAHRM,H20 Utilities Ltd,A043865,12/09/2018,1368235,750.00,Associated Drainage Services,I,5536,900,150,PD,5103-1629,1629
North West Leicestershire District Council,31UH,Housing Repairs,HRA Housing Repairs & Maintenance,HRAHRM,H20 Utilities Ltd,A043865,12/09/2018,1368236,1125.00,Associated Drainage Services,I,5539,1350,225,PD,5103-1628,1628
North West Leicestershire District Council,31UH,Housing Repairs,HRA Housing Repairs & Maintenance,HRAHRM,Orbis Property Protection Ltd,A028149,12/09/2018,1368237,1271.88,Void Property Clearance Services,I,B0904039,1526.26,254.38,PD,5005-1633,1633
North West Leicestershire District Council,31UH,Housing Repairs,HRA Housing Repairs & Maintenance,HRAHRM,H20 Utilities Ltd,A043865,12/09/2018,1368238,950.00,Associated Drainage Services,I,5557,1140,190,PD,5103-1619,1619
North West Leicestershire District Council,31UH,Housing Repairs,HRA Housing Repairs & Maintenance,HRAHRM,Heights Installations,A041264,12/09/2018,1368239,300.00,Aerial and Satellite installation,I,6453,300,0,PD,5103-1605,1605
North West Leicestershire District Council,31UH,Communications,Corporate - Communications,CP,One Stop Promotions (Leics) Ltd,A001240,19/09/2018,1368240,577.00,Publicity & Promotion,I,169090,692.4,115.4,PD,0930-0942,0942
North West Leicestershire District Council,31UH,Information Technology,ICT Services,ICT,Kingsfield Computer Products Ltd,A039732,19/09/2018,1368241,1169.88,Computing,I,85302,1403.87,233.99,PD,0857-0949,0949
North West Leicestershire District Council,31UH,Street Management,Environment Transport,ENOT,Reflec Signs & Graphics Ltd,A025348,12/09/2018,1368245,900.00,Repairs - Parts,I,22817,1080,180,PD,5868-0533,0533
North West Leicestershire District Council,31UH,Street Management,Environment Transport,ENOT,J F Lloyd & Sons,A000991,12/09/2018,1368247,250.00,Hire Of Operational Equipment,I,3239,300,50,PD,0280-0733,0733
North West Leicestershire District Council,31UH,Housing,HRA Housing Management,HRAHM,Redacted- Personal data,A045028,12/09/2018,1368250,250.00,Under Occupancy Incentives,I,MUTUAL EXCHANGE,250,0,PD,5030-0849,0849
North West Leicestershire District Council,31UH,Finance,Exchequer Services,EXCH,Bottomline Technologies Ltd,A044265,12/09/2018,1368252,261.00,Banking Stationery,I,UKINV-055831,313.2,52.2,PD,5513-0783,0783
North West Leicestershire District Council,31UH,Finance,Exchequer Services,EXCH,Comensura Limited,A036958,19/09/2018,1368262,20079.71,Agency Staff,I,1014213,24095.72,4016.01,PD,0370-0080,0080
North West Leicestershire District Council,31UH,Information Technology,ICT Services,ICT,Premier Paper Group,A042438,19/09/2018,1368269,626.23,Consumable Materials,I,9431467,751.48,125.25,PD,0837-0722,0722
North West Leicestershire District Council,31UH,Housing,HRA Performance & Business Support,HRAPBS,Geoff Smith Associates Ltd,A041931,26/09/2018,1368270,261.50,Scanning Services,I,3934,313.8,52.3,PD,1203-0949,0949
North West Leicestershire District Council,31UH,Street Management,Environment Transport,ENOT,Innovative Safety Systems Limited,A038664,19/09/2018,1368279,1510.00,Operational Equipment,I,9959,1812,302,PD,5990-0710,0710
North West Leicestershire District Council,31UH,Street Management,Environment Transport,ENOT,Innovative Safety Systems Limited,A038664,19/09/2018,1368280,1510.00,Operational Equipment,I,9960,1812,302,PD,5990-0710,0710
North West Leicestershire District Council,31UH,Street Management,Environment Transport,ENOT,Innovative Safety Systems Limited,A038664,19/09/2018,1368281,1510.00,Operational Equipment,I,9961,1812,302,PD,5990-0710,0710
North West Leicestershire District Council,31UH,Street Management,Environment Transport,ENOT,Innovative Safety Systems Limited,A038664,19/09/2018,1368282,1510.00,Operational Equipment,I,9962,1812,302,PD,5990-0710,0710
North West Leicestershire District Council,31UH,Economic Development,Business Focus Group,BFG,Key 4 Ads Ltd,A043525,19/09/2018,1368284,398.75,Publicity & Promotion,I,284,398.75,0,PD,0928-0942,0942
North West Leicestershire District Council,31UH,Planning & Development,Environment - Development Control,EDC,Euro RSCG People T/A Havas People Ltd,A001395,19/09/2018,1368286,694.64,Advertising,I,603644,833.44,138.8,PD,0915-0941,0941
North West Leicestershire District Council,31UH,Planning & Development,Environment - Development Control,EDC,Euro RSCG People T/A Havas People Ltd,A001395,19/09/2018,1368287,256.87,Advertising,I,603789,308.2,51.33,PD,0915-0941,0941
North West Leicestershire District Council,31UH,Planning & Development,Environment - Development Control,EDC,Euro RSCG People T/A Havas People Ltd,A001395,19/09/2018,1368290,308.50,Advertising,I,603290,370.14,61.64,PD,0915-0941,0941
North West Leicestershire District Council,31UH,Planning & Development,Environment - Development Control,EDC,Euro RSCG People T/A Havas People Ltd,A001395,19/09/2018,1368291,633.67,Advertising,I,603291,760.29,126.62,PD,0915-0941,0941
North West Leicestershire District Council,31UH,Planning & Development,Environment - Development Control,EDC,Euro RSCG People T/A Havas People Ltd,A001395,19/09/2018,1368292,480.75,Advertising,I,603150,576.81,96.06,PD,0915-0941,0941
North West Leicestershire District Council,31UH,Planning & Development,Environment - Development Control,EDC,Euro RSCG People T/A Havas People Ltd,A001395,19/09/2018,1368294,287.96,Advertising,I,602836,345.5,57.54,PD,0915-0941,0941
North West Leicestershire District Council,31UH,Planning & Development,Environment - Development Control,EDC,Euro RSCG People T/A Havas People Ltd,A001395,19/09/2018,1368296,368.81,Advertising,I,602835,442.51,73.7,PD,0915-0941,0941
North West Leicestershire District Council,31UH,Information Technology,ICT Services,ICT,Adept Telecom Plc,A044193,19/09/2018,1368299,13320.75,Admin Equipment - Maintenance,I,78840,15984.9,2664.15,PD,1011-0696,0696
North West Leicestershire District Council,31UH,Finance,Exchequer Services,EXCH,Click Travel Ltd,A044308,19/09/2018,1368300,1163.25,Accomodation and subsistence,I,1084613,1395.9,232.65,PD,1126-0042,0042
North West Leicestershire District Council,31UH,Environmental Health,Environmental Health & Licensing,EEHL,Eville And Jones Limited,A033670,26/09/2018,1368301,883.16,Vet Inspection,I,EJGB205,1059.79,176.63,PD,0324-0835,0835
North West Leicestershire District Council,31UH,Housing,HRA Housing Management,HRAHM,CWH Surveyors LLP,A044099,19/09/2018,1368316,300.00,Legal & Professional Services,I,90012246,360,60,PD,5030-0800,0800
North West Leicestershire District Council,31UH,Information Technology,ICT Services,ICT,Stone Computers Ltd,A023214,26/09/2018,1368323,12900.00,Contract Payments (Other) Ext,I,1111438,15480,2580,PD,7175-1511,1511
North West Leicestershire District Council,31UH,Leisure & Culture,Cultural Services Arts & Events,CULTEV,Helter Skelter Arts Ltd,A043059,19/09/2018,1368328,500.00,Event Expenditure,I,INV028,500,0,PD,0473-1986,1986
North West Leicestershire District Council,31UH,Leisure Centres,Hermitage Leisure Centre,HLC,Revolution,A001386,26/09/2018,1368332,267.24,Protective Clothing,I,57857,320.69,53.45,PD,5501-0770,0770
North West Leicestershire District Council,31UH,Property Services,Property Commercial Lettings,PROPCL,Proactis Ltd,A043852,19/09/2018,1368336,4000.00,Computing,I,PGL-TS15205324,4800,800,PD,1028-0854,0854
North West Leicestershire District Council,31UH,Street Management,Environment Transport,ENOT,Certas Energy Uk Ltd,A043448,19/09/2018,1368342,1202.80,Fuel,I,1230816,1262.94,60.14,PD,9701-8100,8100
North West Leicestershire District Council,31UH,Information Technology,ICT Services,ICT,Idox Software Ltd,A034157,19/09/2018,1368346,1900.00,Computer Software Maintenance,I,7022668,2280,380,PD,0870-0855,0855
North West Leicestershire District Council,31UH,Housing,HRA Housing Management,HRAHM,Impact Marketing & Publicity Ltd,A042927,19/09/2018,1368351,995.00,Publicity & Promotion,I,103965,1194,199,PD,5050-0949,0949
North West Leicestershire District Council,31UH,Environmental Health,Environmental Services,EES,SUEZ Recycling and Recovery UK Ltd,A001108,19/09/2018,1368354,327.58,Tipping Charges,I,80115511,393.1,65.52,PD,0390-0818,0818
North West Leicestershire District Council,31UH,Environmental Health,Environmental Services,EES,College Garth Ltd T/A College Garth Kennels,A000385,19/09/2018,1368355,2573.71,Stray Dog Service- Kennelling Fees,I,490,3088.45,514.74,PD,0348-0957,0957
North West Leicestershire District Council,31UH,Environmental Health,Environmental Services,EES,Water Plus Limited,A044043,19/09/2018,1368360,572.57,Sewerage & Environmental,I,831159598,572.57,0,PD,0141-0372,0372
North West Leicestershire District Council,31UH,Legal & Democratic,Electoral & Land Charges,LDELC,Royal Mail Group Plc,A001418,19/09/2018,1368363,1848.69,Postages,I,1109385194,2218.43,369.74,PD,0855-0850,0850
North West Leicestershire District Council,31UH,Information Technology,ICT Services,ICT,Six Degrees Technology Group Ltd,A044205,19/09/2018,1368366,1290.15,Admin Equipment - Maintenance,I,1156426,1548.18,258.03,PD,1011-0696,0696
North West Leicestershire District Council,31UH,Environmental Health,Environmental Services,EES,Water Plus Limited,A044043,19/09/2018,1368368,451.80,Water Charges (Metered),I,152025702,451.8,0,PD,0700-0370,0370
North West Leicestershire District Council,31UH,Housing,HRA Older Persons Service,HRAOPS,Tunstall Healthcare (UK) Limited,A001701,19/09/2018,1368369,2560.00,Alarm System Telephones,I,3IN/10324200,3072,512,PD,5050-0864,0864
North West Leicestershire District Council,31UH,Legal & Democratic,Legal Services,LDLS,Anthony Collins Solicitors,A027936,19/09/2018,1368382,2809.50,Consultants Fees,I,299793,3371.4,561.9,PD,0887-0827,0827
North West Leicestershire District Council,31UH,Housing Repairs,HRA Housing Repairs & Maintenance,HRAHRM,Emperor Scaffolding Limited,A038405,19/09/2018,1368383,300.00,Hire Of Operational Equipment,I,12835,360,60,PD,5301-0733,0733
North West Leicestershire District Council,31UH,Housing Repairs,HRA Housing Repairs & Maintenance,HRAHRM,Emperor Scaffolding Limited,A038405,19/09/2018,1368384,400.00,Hire Of Operational Equipment,I,12836,480,80,PD,5301-0733,0733
North West Leicestershire District Council,31UH,Housing Repairs,HRA Housing Repairs & Maintenance,HRAHRM,Emperor Scaffolding Limited,A038405,19/09/2018,1368386,470.00,Hire Of Operational Equipment,I,12814,564,94,PD,5301-0733,0733
North West Leicestershire District Council,31UH,Street Management,Environment Transport,ENOT,Accent Wire Ltd,A044269,19/09/2018,1368388,1540.00,Protective Clothing,I,7612524,1848,308,PD,0370-0770,0770
North West Leicestershire District Council,31UH,Housing,HRA Housing Management,HRAHM,Impact Marketing & Publicity Ltd,A042927,19/09/2018,1368396,995.00,Publicity & Promotion,I,103876,1194,199,PD,5030-0949,0949
North West Leicestershire District Council,31UH,Legal & Democratic,Legal Services,LDLS,Sellick Partnership (East Midlands) Limited,A036668,19/09/2018,1368401,371.25,Agency Staff,I,INV243138,445.5,74.25,PD,1017-0080,0080
North West Leicestershire District Council,31UH,Street Management,Environment Transport,ENOT,Scarab Sweepers Limited,A001445,19/09/2018,1368403,462.45,Repairs - Parts,I,2018.100002,554.94,92.49,PD,5850-0533,0533
North West Leicestershire District Council,31UH,Finance,Exchequer Services,EXCH,Zurich Municipal,A001835,19/09/2018,1368404,1780.00,Miscellaneous Insurances,I,13190-1,1780,0,PD,5501-0940,0940
North West Leicestershire District Council,31UH,Information Technology,ICT Services,ICT,Freedom Communications (UK) Ltd,A032826,19/09/2018,1368416,15246.81,Contract Payments (Other) Ext,I,FSI-133380,18296.17,3049.36,PD,1011-0680,0680
North West Leicestershire District Council,31UH,Housing Repairs,HRA Housing Repairs & Maintenance,HRAHRM,G Purchase Construction Ltd,A032830,19/09/2018,1368417,7358.83,Housing repairs,I,18060232,8830.6,1471.77,PD,5103-1609,1609
North West Leicestershire District Council,31UH,Street Management,Environment Parks,ENOP,Grangewood Fencing Supplies Limited,A013933,19/09/2018,1368419,562.50,Operational Purchases,I,INV0162930,675,112.5,PD,0390-0731,0731
North West Leicestershire District Council,31UH,Street Management,Environment Transport,ENOT,Parkers The Parts People,A044935,19/09/2018,1368421,690.00,Consumable Materials,I,LOA1585502,828,138,PD,5990-0722,0722
North West Leicestershire District Council,31UH,Street Management,Environment Transport,ENOT,Post Office Limited,A008559,19/09/2018,1368422,1550.00,Licences - Road Fund Licence,I,ROAD FUND RENEWALS,1550,0,PD,5827-0980,0980
North West Leicestershire District Council,31UH,Housing Repairs,HRA Housing Repairs & Maintenance,HRAHRM,Orbis Property Protection Ltd,A028149,19/09/2018,1368517,385.00,Void Property Clearance Services,I,B0890036A,462,77,PD,5005-1610,1610
North West Leicestershire District Council,31UH,Housing Repairs,HRA Housing Repairs & Maintenance,HRAHRM,H20 Utilities Ltd,A043865,19/09/2018,1368518,1250.00,Associated Drainage Services,I,5538,1500,250,PD,5103-1637,1637
North West Leicestershire District Council,31UH,Housing Repairs,HRA Housing Repairs & Maintenance,HRAHRM,Laker BMS Ltd,A031787,19/09/2018,1368521,289.00,Housing Repairs,I,IN00070610,346.8,57.8,PD,5010-0167,0167
North West Leicestershire District Council,31UH,Housing Repairs,HRA Housing Repairs & Maintenance,HRAHRM,Laker BMS Ltd,A031787,19/09/2018,1368522,796.50,Housing Repairs,I,IN00070611,955.8,159.3,PD,5010-0167,0167
North West Leicestershire District Council,31UH,Housing Repairs,HRA Housing Repairs & Maintenance,HRAHRM,Laker BMS Ltd,A031787,19/09/2018,1368523,1795.21,Housing Repairs,I,IN00070812,2154.25,359.04,PD,5010-0167,0167
North West Leicestershire District Council,31UH,Housing Repairs,HRA Housing Repairs & Maintenance,HRAHRM,Laker BMS Ltd,A031787,19/09/2018,1368524,3851.99,Housing Repairs,I,IN00070848,4622.39,770.4,PD,6425-1510,1510
North West Leicestershire District Council,31UH,Housing Repairs,HRA Housing Repairs & Maintenance,HRAHRM,Laker BMS Ltd,A031787,19/09/2018,1368525,5965.41,Housing Repairs,I,IN00070849,7158.49,1193.08,PD,6425-1510,1510
North West Leicestershire District Council,31UH,Housing Repairs,HRA Housing Repairs & Maintenance,HRAHRM,Laker BMS Ltd,A031787,19/09/2018,1368526,4783.73,Housing Repairs,I,IN00071079,5740.48,956.75,PD,6425-1510,1510
North West Leicestershire District Council,31UH,Communications,Corporate - Customer Services,CS,Neopost Limited,A000079,19/09/2018,1368528,3000.00,Postages,I,A/C 817489 AN663798,3000,0,PD,0838-0850,0850
North West Leicestershire District Council,31UH,Legal & Democratic,Legal Services,LDLS,Browne Jacobson LLP,A000251,19/09/2018,1368530,13781.00,Legal Services,I,NWL2183/273,13781,0,PD,6429-1602,1602
North West Leicestershire District Council,31UH,Finance,Financial Planning,FINPLA,Appleby Magna Parish Council,A000060,26/09/2018,1368534,9000.00,Precepts,I,PRECEPT 2 2018/19,9000,0,PD,8499-7550,7550
North West Leicestershire District Council,31UH,Finance,Financial Planning,FINPLA,Ashby De La Zouch Town Council,A000091,26/09/2018,1368535,222789.75,Precepts,I,PRECEPT 2 2018/19,222789.75,0,PD,8499-7550,7550
North West Leicestershire District Council,31UH,Finance,Financial Planning,FINPLA,Ashby Woulds Town Council,A000089,26/09/2018,1368536,58927.12,Precepts,I,PRECEPT 2 2018/19,58927.12,0,PD,8499-7550,7550
North West Leicestershire District Council,31UH,Finance,Financial Planning,FINPLA,Belton Parish Council,A000164,26/09/2018,1368537,10570.00,Precepts,I,PRECEPT 2 2018/19,10570,0,PD,8499-7550,7550
North West Leicestershire District Council,31UH,Finance,Financial Planning,FINPLA,Breedon On The Hill Parish Council,A000215,26/09/2018,1368538,11130.62,Precepts,I,PRECEPT  2 2018/19,11130.62,0,PD,8499-7550,7550
North West Leicestershire District Council,31UH,Finance,Financial Planning,FINPLA,Castle Donington Parish Council,A000300,26/09/2018,1368539,156160.00,Precepts,I,PRECEPT 2/2018/19,156160,0,PD,8499-7550,7550
North West Leicestershire District Council,31UH,Finance,Financial Planning,FINPLA,Charley Parish Council,A000322,26/09/2018,1368540,2068.25,Precepts,I,PRECEPT 2 2018/19,2068.25,0,PD,8499-7550,7550
North West Leicestershire District Council,31UH,Finance,Financial Planning,FINPLA,Coleorton Parish Council,A000382,26/09/2018,1368541,7243.37,Precepts,I,PRECEPT 2 2018/19,7243.37,0,PD,8499-7550,7550
North West Leicestershire District Council,31UH,Finance,Financial Planning,FINPLA,Heather Parish Council,A000749,26/09/2018,1368543,6253.87,Precepts,I,PRECEPT 2 2018/19,6253.87,0,PD,8499-7550,7550
North West Leicestershire District Council,31UH,Finance,Financial Planning,FINPLA,Ibstock Parish Council,A000807,26/09/2018,1368544,102237.12,Precepts,I,PRECEPT 2 2018/19,102237.12,0,PD,8499-7550,7550
North West Leicestershire District Council,31UH,Finance,Financial Planning,FINPLA,Kegworth Parish Council,A000882,26/09/2018,1368546,53845.12,Precepts,I,PARISH PRECEPT,53845.12,0,PD,8499-7550,7550
North West Leicestershire District Council,31UH,Finance,Financial Planning,FINPLA,Lockington Cum Hemington PC,A000999,26/09/2018,1368547,5129.75,Precepts,I,PARISH PRECEPT,5129.75,0,PD,8499-7550,7550
North West Leicestershire District Council,31UH,Finance,Financial Planning,FINPLA,Long Whatton & Diseworth PC,A001010,26/09/2018,1368548,19556.75,Precepts,I,PARISH PRECEPT,19556.75,0,PD,8499-7550,7550
North West Leicestershire District Council,31UH,Finance,Financial Planning,FINPLA,Measham Parish Council,A001082,26/09/2018,1368549,58633.50,Precepts,I,PARISH PRECEPT,58633.5,0,PD,8499-7550,7550
North West Leicestershire District Council,31UH,Finance,Financial Planning,FINPLA,"Oakthorpe, Donisthorpe & Acresford Parish Council",A001234,26/09/2018,1368550,26500.00,Precepts,I,PARISH PRECEPT,26500,0,PD,8499-7550,7550
North West Leicestershire District Council,31UH,Finance,Financial Planning,FINPLA,Osgathorpe Parish Council,A001251,26/09/2018,1368551,2075.50,Precepts,I,PARISH PRECEPT,2075.5,0,PD,8499-7550,7550
North West Leicestershire District Council,31UH,Finance,Financial Planning,FINPLA,Packington Parish Council,A001257,26/09/2018,1368552,10522.50,Precepts,I,PARISH PRECEPT,10522.5,0,PD,8499-7550,7550
North West Leicestershire District Council,31UH,Finance,Financial Planning,FINPLA,Ravenstone With Snibston PC,A001364,26/09/2018,1368553,28728.25,Precepts,I,PARISH PRECEPT,28728.25,0,PD,8499-7550,7550
North West Leicestershire District Council,31UH,Finance,Financial Planning,FINPLA,Snarestone Parish Council,A001524,26/09/2018,1368554,3064.50,Precepts,I,PARISH PRECEPT,3064.5,0,PD,8499-7550,7550
North West Leicestershire District Council,31UH,Finance,Financial Planning,FINPLA,Swannington Parish Council,A001608,26/09/2018,1368556,10481.75,Precepts,I,PARISH PRECEPT,10481.75,0,PD,8499-7550,7550
North West Leicestershire District Council,31UH,Finance,Financial Planning,FINPLA,Swepstone Parish Council,A001613,26/09/2018,1368557,8716.50,Precepts,I,PARISH PRECEPT,8716.5,0,PD,8499-7550,7550
North West Leicestershire District Council,31UH,Finance,Financial Planning,FINPLA,Whitwick Parish Council,A038617,26/09/2018,1368558,151103.62,Precepts,I,PARISH PRECEPT,151103.62,0,PD,8499-7550,7550
North West Leicestershire District Council,31UH,Finance,Financial Planning,FINPLA,Worthington Parish Council,A001813,26/09/2018,1368559,4766.87,Precepts,I,PARISH PRECEPT,4766.87,0,PD,8499-7550,7550
North West Leicestershire District Council,31UH,Street Management,Environment - Street Scene,ESS,Coalville Signs,A000370,26/09/2018,1368560,295.00,Signage,I,31173,354,59,PD,0141-0200,0200
North West Leicestershire District Council,31UH,Street Management,Environment Transport,ENOT,Selby's Garage (Woodhouse) Ltd,A044011,26/09/2018,1368561,656.03,Hire Of Operational Equipment,I,9911,787.24,131.21,PD,0280-0733,0733
North West Leicestershire District Council,31UH,Street Management,Environment - Street Scene,ESS,EPT SERVICES,A039764,26/09/2018,1368562,1803.94,Publicity & Promotion,I,200906,2164.73,360.79,PD,0290-0942,0942
North West Leicestershire District Council,31UH,Information Technology,ICT Services,ICT,NB Data Ltd,A033802,26/09/2018,1368563,283.41,Telephones,I,153703,340.09,56.68,PD,1203-0851,0851
North West Leicestershire District Council,31UH,Street Management,Environment Parks,ENOP,Gilvar Lining Ltd,A040848,26/09/2018,1368564,450.00,Operational Purchases,I,44815,540,90,PD,0390-0731,0731
North West Leicestershire District Council,31UH,Neighbourhoods & Communities,N & C Community Safety,NACCS,Resolve Antisocial Behaviour,A035396,26/09/2018,1368567,683.33,Training Course,I,135,820,136.67,PD,0935-5994,5994
North West Leicestershire District Council,31UH,Housing Repairs,HRA Housing Repairs & Maintenance,HRAHRM,Sure Maintenance Ltd,A040460,26/09/2018,1368571,1518.18,Plumbing & Heating,I,250710,1821.82,303.64,PD,5008-0167,0167
North West Leicestershire District Council,31UH,Housing Repairs,HRA Housing Repairs & Maintenance,HRAHRM,Sure Maintenance Ltd,A040460,26/09/2018,1368572,19001.53,Plumbing & Heating,I,249939,22801.84,3800.31,PD,5007-1241,1241
North West Leicestershire District Council,31UH,Housing Repairs,HRA Housing Repairs & Maintenance,HRAHRM,Sure Maintenance Ltd,A040460,26/09/2018,1368573,18928.12,Plumbing & Heating,I,250699,22713.74,3785.62,PD,5007-1241,1241
North West Leicestershire District Council,31UH,Neighbourhoods & Communities,N & C Community Safety,NACCS,Maggie's Tea Party,A042072,26/09/2018,1368575,335.00,Event Expenditure,I,MQ1161,335,0,PD,0935-1927,1927
North West Leicestershire District Council,31UH,Finance,Financial Planning,FINPLA,Hugglescote & Donington Le Heath,A038616,26/09/2018,1368576,50994.50,Precepts,I,PARISH PRECEPT,50994.5,0,PD,8499-7550,7550
North West Leicestershire District Council,31UH,Leisure Centres,Hermitage Leisure Centre,HLC,Mclean Decorators Ltd,A001069,26/09/2018,1368584,580.00,General Repairs,I,1630,696,116,PD,5501-0100,0100
North West Leicestershire District Council,31UH,Leisure Centres,Hermitage Leisure Centre,HLC,J P Lennard Ltd,A000969,26/09/2018,1368586,295.05,Operational Equipment,I,906938,354.06,59.01,PD,5501-0710,0710
North West Leicestershire District Council,31UH,Leisure Centres,Hermitage Leisure Centre,HLC,Lifetime Health & Fitness,A037150,26/09/2018,1368587,481.66,Training Expenses,I,34032,577.99,96.33,PD,5501-0042,0042
North West Leicestershire District Council,31UH,Leisure Centres,Hood Park Leisure Centre,HPLC,Lifetime Health & Fitness,A037150,26/09/2018,1368588,481.66,Training Expenses,I,34033,577.99,96.33,PD,5513-0042,0042
North West Leicestershire District Council,31UH,Leisure Centres,Hermitage Leisure Centre,HLC,J P Lennard Ltd,A000969,26/09/2018,1368589,267.91,Operational Equipment,I,908399,321.49,53.58,PD,5501-0710,0710
North West Leicestershire District Council,31UH,Housing,HRA Housing Management,HRAHM,Polina Limited (IMGE),A044300,26/09/2018,1368592,300.00,Event Expenditure,I,DEPOSIT XMAS,300,0,PD,5085-0949,0949
North West Leicestershire District Council,31UH,Planning & Development,Environment Planning Policy,EPP,BE Group,A045039,26/09/2018,1368593,2441.25,Legal & Professional Services,I,18/0903,2929.5,488.25,PD,0925-0680,0680
North West Leicestershire District Council,31UH,Housing,HRA Housing Management,HRAHM,PPG Architectural Coatings Ltd,A000876,26/09/2018,1368597,2987.62,Internal Decorations,I,1800001393/2018,3585.15,597.53,PD,5010-3270,3270
North West Leicestershire District Council,31UH,Legal & Democratic,Legal Services,LDLS,Harry Pseftoudis,A045049,26/09/2018,1368598,350.00,Photography,I,312,350,0,PD,1017-1078,1078
North West Leicestershire District Council,31UH,Street Management,Environment - Street Scene,ESS,Mallard Consultancy Ltd,A039987,26/09/2018,1368600,990.00,Subscriptions,I,4576,1188,198,PD,1126-0901,0901
North West Leicestershire District Council,31UH,Finance,Exchequer Services,EXCH,ESPO,A000958,20/09/2018,1368603,11423.85,Gas,I,DD 31/8/18,13352.67,1928.82,PD,5501-0303,0303
North West Leicestershire District Council,31UH,Finance,Exchequer Services,EXCH,Appliances Direct,A042250,20/09/2018,1368604,387.10,Portable Air Conditioning Unit,I,PERIOD 5 2018,1339.01,131.52,PD,0841-0951,0951
North West Leicestershire District Council,31UH,Finance,Exchequer Services,EXCH,Institute of Swimming,A042250,20/09/2018,1368604,299.00,Training Course,I,PERIOD 5 2018,1339.01,131.52,PD,0841-0951,0951
North West Leicestershire District Council,31UH,Finance,Exchequer Services,EXCH,Survey Monkey,A042250,20/09/2018,1368605,310.00,Survey Building Tool,I,PERIOD 6 2018,1023.57,128.22,PD,1018-0783,0783
North West Leicestershire District Council,31UH,Finance,Financial Planning,FINPLA,Stirling Council,A044703,20/09/2018,1368606,1500000.00,Policy Lending,I,FIX DEP 17/9-29/5/19,1500000,0,PD,8870-9412,9412
North West Leicestershire District Council,31UH,Finance,Financial Planning,FINPLA,North Lanarkshire Council,A043916,20/09/2018,1368609,2000000.00,Policy Lending,I,FIX DEP 25/9-25/3/19,2000000,0,PD,8870-9412,9412
North West Leicestershire District Council,31UH,Corporate Director,Human Resources,HR,The Disclosure & Barring Service,A027625,20/09/2018,1368610,404.00,DBS Checks,I,A93979,404,0,PD,0310-1012,1012
North West Leicestershire District Council,31UH,Street Management,Environment Transport,ENOT,J F Lloyd & Sons,A000991,26/09/2018,1368616,350.00,Hire Of Operational Equipment,I,3170,420,70,PD,0280-0733,0733
North West Leicestershire District Council,31UH,Street Management,Environment Transport,ENOT,J F Lloyd & Sons,A000991,26/09/2018,1368617,260.00,Hire Of Operational Equipment,I,3181,312,52,PD,0280-0733,0733
North West Leicestershire District Council,31UH,Leisure Centres,Hermitage Bar & Catering,HLBC,Snackline Direct Ltd,A042489,26/09/2018,1368621,277.23,Catering Provisions,I,96816,332.68,55.45,PD,5501-0750,0750
North West Leicestershire District Council,31UH,Leisure Centres,Hermitage Bar & Catering,HLBC,Snackline Direct Ltd,A042489,26/09/2018,1368633,894.79,Vending Machine Provisions,I,96520,1070.95,176.16,PD,5501-0752,0752
North West Leicestershire District Council,31UH,Finance,Exchequer Services,EXCH,Click Travel Ltd,A044308,26/09/2018,1368634,949.59,Accomodation and subsistence,I,1086273,1073.31,123.72,PD,1001-0042,0042
North West Leicestershire District Council,31UH,Communications,Corporate - Customer Services,CS,Neopost Limited,A000079,26/09/2018,1368635,2841.31,Postages,I,A/C 817489 AN 663798,2841.31,0,PD,0838-0850,0850
North West Leicestershire District Council,31UH,Housing,HRA Housing Management,HRAHM,Leicestershire County Council,A000950,26/09/2018,1368636,6904.82,Contract Cleaning,I,26014475,8285.78,1380.96,PD,5030-0420,0420
North West Leicestershire District Council,31UH,Finance,Exchequer Services,EXCH,Comensura Limited,A036958,26/09/2018,1368638,18355.64,Agency Staff,I,1014564,22026.78,3671.14,PD,0320-0080,0080
North West Leicestershire District Council,31UH,Finance,Exchequer Services,EXCH,Ellistown And Battleflat Parish Council,A021576,26/09/2018,1368640,31248.37,Precepts,I,PARISH PRECEPT,31248.37,0,PD,8499-7550,7550
North West Leicestershire District Council,31UH,Finance,Financial Planning,FINPLA,Public Works Loan Board,A001340,21/09/2018,1368641,548558.27,Annuity Loan Repayments,I,PWLB 28/9/18,548558.27,0,PD,8800-9411,9411
North West Leicestershire District Council,31UH,Finance,Financial Planning,FINPLA,Public Works Loan Board,A001340,21/09/2018,1368642,1000000.00,P.W.L.B. Loans,I,PWLB 28/9/18 PT2,1000000,0,PD,8499-6660,6660
North West Leicestershire District Council,31UH,Finance,Financial Planning,FINPLA,Public Works Loan Board,A001340,21/09/2018,1368643,80024.92,P.W.L.B. Loans,I,PWLB 28/9/18 PT3,80024.92,0,PD,8499-6660,6660
North West Leicestershire District Council,31UH,Finance,Financial Planning,FINPLA,H M Land Registry,A000713,21/09/2018,1368644,468.00,Land registry Fees,I,DD'S 17/8 TO 29/8,468,0,PD,0477-0949,0949
North West Leicestershire District Council,31UH,Finance,Financial Planning,FINPLA,Goldman Sachs Money Market Fund,A039248,21/09/2018,1368645,7200000.00,Policy Lending,I,"SUBS 7,10,17 & 21/9/",7200000,0,PD,8870-9412,9412
North West Leicestershire District Council,31UH,Finance,Financial Planning,FINPLA,Blackrock Cash Management,A039249,21/09/2018,1368646,4200000.00,Policy Lending,I,SUBS 3/9/18,4200000,0,PD,8870-9412,9412
North West Leicestershire District Council,31UH,Finance,Financial Planning,FINPLA,Scottish Widows Investment Partnerhiip,A039247,21/09/2018,1368648,1300000.00,Policy Lending,I,SUBS 31/8 & 14/9/18,1300000,0,PD,8870-9412,9412
North West Leicestershire District Council,31UH,Leisure Centres,Hood Park Leisure Centre,HPLC,Technogym Uk Limited,A001642,26/09/2018,1368649,659.62,Operational Equipment,I,1871001002,791.54,131.92,PD,5513-0710,0710
North West Leicestershire District Council,31UH,Neighbourhoods & Communities,N & C Neighbourhoods,NACN,Phoenix Children's Foundation,A045052,26/09/2018,1368652,500.00,Grants,I,GREEN GRANT,500,0,PD,0935-1027,1027
North West Leicestershire District Council,31UH,Housing Strategy,Community - Housing Strategy,HS,Westcotes House Ltd,A042208,26/09/2018,1368654,297.00,Homelessness prevention,I,W2726,356.4,59.4,PD,0570-0803,0803
North West Leicestershire District Council,31UH,Leisure Centres,Hermitage Leisure Centre,HLC,Centrica Business Solutions Uk Ltd,A034390,26/09/2018,1368660,550.00,Service Contracts,I,18501947,660,110,PD,5513-0718,0718
North West Leicestershire District Council,31UH,Housing,HRA Performance & Business Support,HRAPBS,ESPO,A000958,26/09/2018,1368672,373.50,Furniture,I,4988525,448.2,74.7,PD,5085-0949,0949
North West Leicestershire District Council,31UH,Finance,Exchequer Services,EXCH,H M Land Registry,A000713,21/09/2018,1368674,415.00,Land registry Fees,I,DD'S 31/8-21/9/18,415,0,PD,0477-0949,0949
North West Leicestershire District Council,31UH,Leisure Centres,Hermitage Leisure Centre,HLC,Admiral Cleaning Supplies Ltd,A041992,26/09/2018,1368683,256.44,Consumable Cleaning Materials/Hygiene,I,344606,307.73,51.29,PD,5501-0421,0421
North West Leicestershire District Council,31UH,Leisure Centres,Hermitage Leisure Centre,HLC,Dura-Sport (Leisure Care) Ltd,A041815,26/09/2018,1368692,375.00,Service Contracts,I,4192,450,75,PD,5512-0718,0718
North West Leicestershire District Council,31UH,Leisure Centres,Hood Park Bar and Catering,HPBC,Catering Services (Supplies) Ltd,A000310,26/09/2018,1368699,446.96,Catering Provisions,I,685625,446.96,0,PD,5513-0750,0750
North West Leicestershire District Council,31UH,Street Management,Environment Transport,ENOT,Mitchell Diesel Ltd t/a Mitchell Power Systems,A001128,26/09/2018,1368704,811.22,Repairs - Parts,I,7970050457,973.46,162.24,PD,5893-0533,0533
North West Leicestershire District Council,31UH,Housing Repairs,HRA Housing Repairs & Maintenance,HRAHRM,Michael Dyson Associates Ltd,A028431,26/09/2018,1368705,2240.00,Consultants Fees,I,4358,2688,448,PD,6477-1536,1536
North West Leicestershire District Council,31UH,Corporate Director,Human Resources,HR,Specsavers Corporate Eyecare,A028625,26/09/2018,1368706,525.00,Eye Care Vouchers,I,144014,525,0,PD,9713-8100,8100
North West Leicestershire District Council,31UH,Neighbourhoods & Communities,N & C Community Safety,NACCS,Solon Security,A035272,26/09/2018,1368707,600.00,Security Equipment,I,SI18006778,720,120,PD,0935-5994,5994
North West Leicestershire District Council,31UH,Street Management,Environment Transport,ENOT,J F Lloyd & Sons,A000991,26/09/2018,1368709,960.00,External Contractor Payments,I,3249,1152,192,PD,0370-0813,0813
North West Leicestershire District Council,31UH,Leisure Centres,Hermitage Leisure Centre,HLC,Water Plus Limited,A044043,26/09/2018,1368714,11436.87,Water Charges (Metered),I,406002256,11436.87,0,PD,5501-0370,0370
North West Leicestershire District Council,31UH,Leisure Centres,Hood Park Bar and Catering,HPBC,Snackline Direct Ltd,A042489,26/09/2018,1368715,960.18,Vending Machine Provisions,I,96521,1152.22,192.04,PD,5513-0752,0752
North West Leicestershire District Council,31UH,Property Services,Property Commercial Lettings,PROPCL,Coalville Cleaning Services,A003037,26/09/2018,1368721,585.96,Contract Cleaning,I,25585,703.15,117.19,PD,0044-0420,0420
North West Leicestershire District Council,31UH,Property Services,Property Commercial Lettings,PROPCL,Coalville Cleaning Services,A003037,26/09/2018,1368722,304.45,Contract Cleaning,I,25584,365.34,60.89,PD,0037-0420,0420
North West Leicestershire District Council,31UH,Street Management,Environment Transport,ENOT,Mertrux Ltd,A035291,26/09/2018,1368725,280.17,Scheduled Servicing - Parts,I,21133890,336.2,56.03,PD,5899-0532,0532
North West Leicestershire District Council,31UH,Street Management,Environment - Street Scene,ESS,Co-operative Funeral Care,A045054,26/09/2018,1368737,500.00,Welfare Funerals,I,60218890 RICHARD MCK,500,0,PD,0913-1160,1160
North West Leicestershire District Council,31UH,Neighbourhoods & Communities,N & C Neighbourhoods,NACN,Rotary Club of Ashby Castle,A036172,26/09/2018,1368739,500.00,Small Grant Scheme,I,NWL COMMEMORATES,500,0,PD,0935-0907,0907
North West Leicestershire District Council,31UH,Property Services,Property Facilities Management,PROPFM,Water Plus Limited,A044043,26/09/2018,1368741,856.95,Service Contracts,I,152003435,856.95,0,PD,0210-0102,0102
North West Leicestershire District Council,31UH,Property Services,Property Commercial Lettings,PROPCL,British Telecommunications Plc,A000233,26/09/2018,1368744,551.21,Telephones,I,01530 276100,661.45,110.24,PD,0044-0851,0851
North West Leicestershire District Council,31UH,Planning & Development,Environment - Town Centre/CCTV,ECCTV,Water Plus Limited,A044043,26/09/2018,1368746,436.26,Water Charges (Metered),I,152025702,436.26,0,PD,0700-0370,0370
North West Leicestershire District Council,31UH,Housing Repairs,HRA Housing Repairs & Maintenance,HRAHRM,Timber-Link Fencing Ltd,A033297,26/09/2018,1368750,918.00,External Contractor Payments,I,1431,1101.6,183.6,PD,0390-0813,0813
North West Leicestershire District Council,31UH,Housing Repairs,HRA Housing Repairs & Maintenance,HRAHRM,Timber-Link Fencing Ltd,A033297,26/09/2018,1368751,1100.00,External Contractor Payments,I,1421,1320,220,PD,0390-0813,0813
North West Leicestershire District Council,31UH,Housing Repairs,HRA Housing Repairs & Maintenance,HRAHRM,Timber-Link Fencing Ltd,A033297,26/09/2018,1368752,1395.00,External Contractor Payments,I,1430,1674,279,PD,0390-0813,0813
North West Leicestershire District Council,31UH,Housing Repairs,HRA Housing Repairs & Maintenance,HRAHRM,Timber-Link Fencing Ltd,A033297,26/09/2018,1368753,1000.00,External Contractor Payments,I,1420,1200,200,PD,0390-0813,0813
North West Leicestershire District Council,31UH,Housing Repairs,HRA Housing Repairs & Maintenance,HRAHRM,Orbis Property Protection Ltd,A028149,26/09/2018,1368801,401.32,Void Property Clearance Services,I,B0905625,481.59,80.27,PD,5030-0100,0100
North West Leicestershire District Council,31UH,Housing Repairs,HRA Housing Repairs & Maintenance,HRAHRM,Laker BMS Ltd,A031787,26/09/2018,1368803,2512.44,Housing Repairs,I,IN00071114,3014.93,502.49,PD,5010-0167,0167
North West Leicestershire District Council,31UH,Housing Repairs,HRA Housing Repairs & Maintenance,HRAHRM,Laker BMS Ltd,A031787,26/09/2018,1368804,1995.10,Housing Repairs,I,IN00071115,2394.12,399.02,PD,5010-0167,0167
North West Leicestershire District Council,31UH,Housing Repairs,HRA Housing Repairs & Maintenance,HRAHRM,Orbis Property Protection Ltd,A028149,26/09/2018,1368805,781.03,Void Property Clearance Services,I,B0905812,937.24,156.21,PD,5005-1601,1601
North West Leicestershire District Council,31UH,Housing Repairs,HRA Housing Repairs & Maintenance,HRAHRM,H20 Utilities Ltd,A043865,26/09/2018,1368809,675.00,Associated Drainage Services,I,5573,810,135,PD,5103-1630,1630
North West Leicestershire District Council,31UH,Housing Repairs,HRA Housing Repairs & Maintenance,HRAHRM,H20 Utilities Ltd,A043865,26/09/2018,1368810,850.00,Associated Drainage Services,I,5575,1020,170,PD,5103-1637,1637
North West Leicestershire District Council,31UH,Housing Repairs,HRA Housing Repairs & Maintenance,HRAHRM,H20 Utilities Ltd,A043865,26/09/2018,1368811,700.00,Associated Drainage Services,I,5578,840,140,PD,5103-1637,1637
North West Leicestershire District Council,31UH,Housing Repairs,HRA Housing Repairs & Maintenance,HRAHRM,H20 Utilities Ltd,A043865,26/09/2018,1368812,650.00,Associated Drainage Services,I,5584,780,130,PD,5103-1611,1611
North West Leicestershire District Council,31UH,Street Management,Environment Waste Management,ENOWM,Overton UK Limited,A033725,26/09/2018,1368814,1649.00,Street Cleansing Equipment,I,11132,1978.8,329.8,PD,1124-1058,1058
North West Leicestershire District Council,31UH,Housing Repairs,HRA Housing Repairs & Maintenance,HRAHRM,DTE Demolition,A044031,26/09/2018,1368817,1020.00,Demolition Services,I,538002,1224,204,PD,5005-1601,1601
North West Leicestershire District Council,31UH,Property Services,Property Facilities Management,PROPFM,DTE Demolition,A044031,26/09/2018,1368818,19770.00,Contract Payments (Other) Ext,I,1291,23724,3954,PD,7260-1511,1511
North West Leicestershire District Council,31UH,Property Services,Property Facilities Management,PROPFM,Olighting,A044685,26/09/2018,1368821,3343.55,Contract Payments (Other) Ext,I,INV-10008-AB-IB,4012.26,668.71,PD,7487-1511,1511
North West Leicestershire District Council,31UH,Finance,Revenues,REVS,Hinckley & Bosworth Borough Council,A000770,26/09/2018,1368825,203512.45,Shared Revs & Bens Partnership costs,I,4001229864,203512.45,0,PD,1211-0852,0852
